Cogmind - Beta 12 X1 @@@ ROGUE MODE // 2022.07.01 @ 14:12:43 Player: btmk16 Result: Destroyed by D-53 Grenadier with Mini Grenade Launcher Performance ------------- Evolutions (0) 0 Regions Visited (2) 400 Robots Destroyed (16) 80 Value Destroyed (264) 264 Prototype IDs (0) 0 Alien Tech Used (0) 0 Bonus (0) 0 TOTAL SCORE: 744 Bonus ------- None Cogmind --------- Core Integrity 0/250 Matter 290/300 Energy 100/100 System Corruption 4% Temperature Cool (0) Movement Core (50) Location -10/Mines Parts ------- > --- POWER (1) -------- (None) > --- PROPULSION (2) --- (None) > --- UTILITY (2) ------ Transport Network Coupler > --- WEAPON (2) ------- (None) > --- INVENTORY (5) ---- Light Treads Small Storage Unit Tractor Beam Grenade Launcher Grenade Launcher Peak State ------------ > --- POWER ------------ Ion Engine > --- PROPULSION ------- Aluminum Leg Aluminum Leg > --- UTILITY ---------- Small Storage Unit Medium Storage Unit > --- WEAPON ----------- EM Pulse Gun Medium Laser > --- INVENTORY -------- Light Ion Engine Light Treads Light Treads Wheel Compact Wheel Assault Rifle Grenade Launcher [Rating: 7] Favorites ----------- Power Ion Engine Engine Ion Engine Propulsion Light Treads Treads Light Treads Leg Aluminum Leg Utility Medium Storage Unit Storage Medium Storage Unit Processor Transport Network Coupler Weapon Assault Rifle Energy Gun Medium Laser Ballistic Gun Assault Rifle Build | -11 -10 -10 ------- Run | Scr Mat Min Slots Evolved . | . . . Power . | . . . Propulsion . | . . . Utility . | . . . Weapon . | . . . Parts Attached 9 | . 9 . Power 2 | . 2 . Engine 2 | . 2 . Core . | . . . Reactor . | . . . Propulsion 3 | . 3 . Treads 2 | . 2 . Leg 1 | . 1 . Wheel . | . . . Hover . | . . . Flight . | . . . Utility 2 | . 2 . Device . | . . . Storage 1 | . 1 . Processor 1 | . 1 . Hackware . | . . . Protection . | . . . Artifact . | . . . Weapon 2 | . 2 . Energy Gun . | . . . Energy Cannon . | . . . Ballistic Gun 2 | . 2 . Ballistic Cannon . | . . . Launcher . | . . . Special Weapon . | . . . Impact Weapon . | . . . Slashing Weapon . | . . . Piercing Weapon . | . . . Special Melee Weapon . | . . . Unidentified Prototypes . | . . . Parts Lost 7 | . 2 5 Power 2 | . 1 1 Propulsion 2 | . . 2 Utility . | . . . Weapon 3 | . 1 2 Highest Loss Streak 5 | . 1 5 To Critical Strikes . | . . . Average Slot Usage (%) 91 | . 92 87 Engine 13 | . 13 12 Treads 16 | . 15 24 Leg 11 | . 12 . Storage 13 | . 14 12 Processor 8 | . 7 14 Energy Gun 6 | . 6 . Ballistic Gun 21 | . 21 24 Naked Turns . | . . . Heaviest Build 19 | 14 19 16 Greatest Support 40 | 20 40 40 Greatest Overweight (x) . | . . . Average Overweight (x) . | . . . Largest Inventory Capacity 10 | . 10 10 Average Capacity 9 | . 9 9 Most Carried 10 | . 10 7 Average Carried 8 | . 8 6 Final Capacity 10 | 8 10 5 Final Carried 7 | 6 7 5 Class Distribution -------------------- 100% | Mutant Dominant Class ---------------- Mutant | -10/Materials Mutant | -10/Mines Resources | -11 -10 -10 ----------- Run | Scr Mat Min Matter Collected 434 | 200 227 7 Remotely . | . . . Salvage Created 434 | . 434 . Parts 26 | . 26 . Haulers Intercepted 2 | . 2 . Recyclers Shooed 1 | . 1 . Parts Field Recycled . | . . . Retrieved Matter . | . . . Parts Self-Destructed . | . . . Prevented . | . . . Kills | -11 -10 -10 ------- Run | Scr Mat Min Combat Hostiles Destroyed 14 | . 14 . Guns 14 | . 14 . Classes Destroyed 3 | . 3 . Hauler 2 | . 2 . Swarmer 9 | . 9 . Grunt 5 | . 5 . Best Kill Streak 3 | . 3 . Combat Bots Only 3 | . 3 . Max Kills in Single Turn 1 | . 1 . Gunslinging . | . . . Exploded . | . . . Melee . | . . . Uniques/NPCs Destroyed . | . . . Combat | -11 -10 -10 -------- Run | Scr Mat Min Damage Taken 975 | . 462 513 Core 252 | . 71 181 Absorbed by Shields . | . . . Core Remaining (%) 100 | 100 . . Volleys Fired 51 | . 49 2 Largest 2 | . 2 2 Hottest 90 | . 90 40 Shots Fired 96 | . 92 4 Gun 96 | . 92 4 Cannon . | . . . Launcher . | . . . Special . | . . . Kinetic 81 | . 77 4 Thermal 8 | . 8 . Explosive . | . . . Electromagnetic 7 | . 7 . Robot Hit Streak 6 | . 6 1 Robot Miss Streak 8 | . 8 2 Penetration Max . | . . . Secondary Targets . | . . . Shots Hit Robots 51 | . 50 1 Core Hits 26 | . 25 1 Critical Kills . | . . . Critical Parts Destroyed 1 | . 1 . Critical Strikes 1 | . 1 . Destroy 1 | . 1 . Melee Attacks . | . . . Impact . | . . . Slashing . | . . . Piercing . | . . . Sneak Attacks . | . . . Combat Hostiles . | . . . Follow-up Attacks . | . . . Damage Inflicted 603 | . 582 21 Guns 603 | . 582 21 Cannons . | . . . Explosions . | . . . Melee . | . . . Ramming . | . . . Kinetic 533 | . 512 21 Thermal 25 | . 25 . Explosive . | . . . Electromagnetic 45 | . 45 . Impact . | . . . Slashing . | . . . Piercing . | . . . Highest Corruption 4 | . 4 4 Average Corruption 3 | . 3 4 Corruption Purged . | . . . Corruption Blocked . | . . . Effects 14 | . 12 2 Message Errors 1 | . 1 . Matter Fused 3 | . 3 . Heat Flow Errors 1 | . 1 . Energy Discharges 3 | . 1 2 Parts Rejected 1 | . 1 . Data Loss (minor) 2 | . 2 . Data Loss (major) 2 | . 2 . Weapon Failures 1 | . 1 . Overload Shots . | . . . Overflow Damage . | . . . Projectiles . | . . . Explosions . | . . . Melee . | . . . Knockbacks . | . . . Impact . | . . . Kinetic . | . . . Secondary . | . . . Self-Inflicted Damage . | . . . Shots . | . . . Rammed . | . . . Targets Rammed . | . . . Kicked . | . . . Crushed . | . . . Highest Temperature 150 | . 150 . Average Temperature 52 | . 52 . Received Heat Transfer 114 | . 114 . Siege Activations . | . . . Robots Corrupted . | . . . Combat Hostiles . | . . . Parts Fried . | . . . Impact Corruptions . | . . . Robots Melted . | . . . Combat Hostiles . | . . . Parts Melted . | . . . Heat Transferred 74 | . 74 . Parts Sabotaged . | . . . Parts Stolen . | . . . Parts Stripped . | . . . Power Chain Reactions . | . . . Missiles Intercepted . | . . . Alert | -11 -10 -10 ------- Run | Scr Mat Min Peak Influence 313 | . 313 114 Initial 114 | . . 114 Average 160 | . 165 108 Maximum Alert Level 1 | . 1 . Low Security (%) 64 | . 61 100 Level 1 35 | . 38 . Level 2 . | . . . Level 3 . | . . . Level 4 . | . . . Level 5 . | . . . High Security . | . . . Max Security . | . . . Squads Dispatched 2 | . 2 . Investigation . | . . . Extermination . | . . . Reinforcement 2 | . 2 . Assault . | . . . Garrison . | . . . Intercept . | . . . Searches Triggered . | . . . Construction Impeded . | . . . Haulers Reinforced . | . . . Active Scanning Responses . | . . . Cargo Convoy Interrupts . | . . . Stealth | -11 -10 -10 --------- Run | Scr Mat Min Distress Signals 3 | . 3 . Communications Jammed . | . . . Distress Signals . | . . . Times Spotted 24 | . 22 2 Peak Tracking Total 4 | . 4 2 Tactical Retreats 1 | . 1 . Traps | -11 -10 -10 ------- Run | Scr Mat Min Traps Triggered 3 | . 3 . Indirectly . | . . . Trap Hack Attempts . | . . . Triggered . | . . . Disarmed . | . . . Reprogrammed . | . . . Reused . | . . . Traps Extracted . | . . . Installed . | . . . Triggered . | . . . Machines | -11 -10 -10 ---------- Run | Scr Mat Min Machines Disabled . | . . . Max in Single Turn . | . . . Machines Sabotaged . | . . . Garrisons Compromised . | . . . Overloaded Fab Kills . | . . . Hacking | -11 -10 -10 --------- Run | Scr Mat Min Machines Accessed 3 | . 3 . Terminals 3 | . 3 . Fabricators . | . . . Repair Stations . | . . . Recycling Units . | . . . Scanalyzers . | . . . Garrison Access . | . . . Total Hacks 5 | . 5 . Successful 2 | . 2 . Failed 3 | . 3 . Catastrophic 3 | . 3 . Database Lockouts . | . . . Manual 3 | . 3 . Terminals 5 | . 5 . Fabricators . | . . . Repair Stations . | . . . Recycling Units . | . . . Scanalyzers . | . . . Garrison Access . | . . . Terminal Hacks 2 | . 2 . Robot Analysis 2 | . 2 . Fabricator Hacks . | . . . Repair Station Hacks . | . . . Recycling Unit Hacks . | . . . Scanalyzer . | . . . Garrison Access Hacks . | . . . Unauthorized Hacks . | . . . Terminals . | . . . Fabricators . | . . . Repair Stations . | . . . Recycling Units . | . . . Scanalyzers . | . . . Garrison Access . | . . . Data Cores Recovered . | . . . Used . | . . . Hacking Detections 3 | . 3 . Full Trace Events . | . . . Feedback Events . | . . . Feedback Blocked . | . . . Robot Schematics Acquired . | . . . Robots Built . | . . . Authchips . | . . . Time . | . . . Total Robot Build Rating . | . . . Part Schematics Acquired . | . . . Parts Built . | . . . Authchips . | . . . Time . | . . . Total Part Build Rating . | . . . Parts Repaired . | . . . Time . | . . . Parts Recycled . | . . . Recycled Matter . | . . . Retrieved Matter . | . . . Retrieved Components . | . . . Parts Scanalyzed . | . . . Part Schematics Acquired . | . . . Parts Damaged . | . . . Bothacking | -11 -10 -10 ------------ Run | Scr Mat Min Used RIF Installer . | . . . Robots Hacked . | . . . Non-combat . | . . . Combat . | . . . Robot Hacks Applied . | . . . Relay Couplers Released . | . . . Fabnet Peak Effective % . | . . . Robots Rewired . | . . . Allies Hacked . | . . . Hacks Repelled . | . . . Allies | -11 -10 -10 -------- Run | Scr Mat Min Total Allies . | . . . Largest Group . | . . . Highest-Rated Group . | . . . Highest-Rated Ally . | . . . Total Orders . | . . . Ally Attacks . | . . . Total Damage . | . . . Kills . | . . . Allies Corrupted . | . . . Allies Melted . | . . . Intel | -11 -10 -10 ------- Run | Scr Mat Min Robot Analysis Total 2 | . 2 . Derelict Logs Recovered . | . . . Drone Launches . | . . . Drone Recoveries . | . . . Exploration | -11 -10 -10 ------------- Run | Scr Mat Min Turns Passed 753 | . 683 70 Spaces Moved 404 | 1 358 45 Core 8 | . . 8 Treads 216 | . 179 37 Legs 180 | 1 179 . Wheels . | . . . Hover . | . . . Flight . | . . . Fastest Speed 50 | 120 120 50 Average Speed 140 | 120 140 140 Slowest Speed 160 | 120 160 160 Overloaded Moves . | . . . Propulsion Burnouts . | . . . Robots Hopped . | . . . Cave-ins Triggered . | . . . Exploration Rate (%) 26 | 2 64 14 Regions Visited 2 Branch Regions 1 Pre-discovered Areas . | . . . Known Exits Taken . | . . . Unknown Exits Taken 2 | 1 1 . Scrap Searched . | . . . Spaces Dug . | . . . Terrain Destroyed . | . . . Melee . | . . . Projectile . | . . . AOE . | . . . Terrain Rammed . | . . . Walls Destroyed . | . . . Machines Disabled . | . . . Actions | -11 -10 -10 --------- Run | Scr Mat Min Total 501 | . 453 48 Wait 27 | . 27 . Move 402 | . 357 45 Hop . | . . . Pick Up 6 | . 6 . Fast Attach 5 | . 5 . Attach 2 | . 2 . Detach 1 | . 1 . Swap 2 | . 2 . Drop 5 | . 4 1 Fire 51 | . 49 2 Melee . | . . . Ram . | . . . Kick . | . . . Crush . | . . . Escape Stasis . | . . . Rewire . | . . . Trap . | . . . Miscellaneous . | . . . Route ------- -11/Scrapyard -10/Materials (discovered 3 exits: [*Mat x2] / [*Min]) -10/Mines (discovered 1 exit: [*Mat]) History --------- Turn | Location | Event 1 | -11/Scrapyard | Discovered new exit (range 0) 1 | -11/Scrapyard | Entered Materials 187 | -10/Materials | Discovered new exit (range 15) 291 | -10/Materials | Discovered new exit (range 11) 348 | -10/Materials | Build established: Mutant 437 | -10/Materials | Discovered new exit (range 16) 684 | -10/Materials | Entered Mines 697 | -10/Mines | Discovered new exit (range 6) 729 | -10/Mines | Assembled infested the area 734 | -10/Mines | Assisted by a Guerilla fighting off Assembled 751 | -10/Mines | Core integrity fell below 50% 753 | -10/Mines | Core integrity fell below 20% 754 | -10/Mines | Destroyed by D-53 Grenadier with Mini Grenade Launcher Last Messages --------------- 00739_ C-30 ARC bursts open, deploying its payload. 00739_ D-53 Grenadier unfolds itself. 00739_ T-07 Excavator destroyed. 00739_ BF-JJ8(h): "I'll hold them off! Go on ahead or try to find another way!" 00740_ BF-JJ8(h) destroyed. 00740_ R-06 Scavenger destroyed. 00744_ Lgt. Ion Engine destroyed. 00744_ Lgt. Treads destroyed. 00744_ R-06 Scavenger destroyed. 00745_ The unstable cave ceiling collapses. 00746_ Lgt. Assault Rifle destroyed. 00747_ The unstable cave ceiling collapses. 00748_ Assault Rifle destroyed. 00748_ Lgt. Treads destroyed. 00749_ The unstable cave ceiling collapses. 00749_ Dropped Med. Storage Unit. 00750_ The unstable cave ceiling collapses. 00751_ Acquired 7 matter. 00752_ The unstable cave ceiling collapses. Map ----- +----------------------------------------------------+ | ??????????????????????????????????? | | ??????????????????????????????????? | | ??????????????????????????????? ??? | | ?????????????????????????????## #? | | ????????????????????????????? #? | | ????????????????????????????# #? | | ???????????????????????????? #? | | ???????????????????????????? #? | | ???????????????????????????? #? | | ???????????????????????????? ?? | | ????????????????????????????# ?? | | ????????????????????????????# #?? | | ??????????????????????????### #?? | | ????????????????????????### ##? | | ????????????????????????# ## | | ????????????????????????# # | | ????????????????????????# # | | ????????????????????????# !] # | | ????????????????????????# | | ????????????????????????# ! # | | ???????????????????????## | | ??????????????????????## | | ?????????????????????## # | | ?????????????????????# ## | | ?????????????????????# d ##? | | ?????????????????????## @ ###?? | | ??????????????????????# d #??? | | ??????????????????????# r ##??? | | ??????????????????????## ####???? | | ?????????????????????#### ##??????? | | ????????????????????## ##??????? | | ????????????????????# #??????? | | ???????????????????## #??????? | | ???????????????????# #??????? | | ??????????????????## ##??????? | | ?????????????????## ##???????? | | ?????????????????# ##????????? | | ?????????????????# < ##?###?????? | | ?????????????????# ### ##????? | | ?????????????????## #????? | | ??????????????????### #????? | | ????????????????????#### """ #????? | | ??????????????????????## """ #????? | | ???????????????????#### """ #????? | | ??????????????????## #????? | | ??????????????????# ##????? | | ?????????????????# ## ##?????? | | ????????????? #### #??????? | | ?????????? #???## #??????? | | ???????? ####??????##??????? | +----------------------------------------------------+ Best States ------------- Heat Dissipation 25 Energy Generation 10 Energy Capacity 250 Matter Stores 300 Matter Capacity 300 Sight Range 16 Terrain Scan Density 10 Evasion (%) 55 Recoil Reduction 2 Item Schematics ----------------- None Robot Schematics ------------------ None Fabricated ------------ Nothing Alien Tech Used ----------------- None Achievements -------------- None Challenges ------------ None Game ------ Seed EnhancedDisruptionSpear Manual? 0 Play Time 00:05:34 Cumulative 366.2 hours Start 2022.07.01 @ 14:07:44 End 2022.07.01 @ 14:12:43 Sessions 1 Manual Loads 0 Difficulty Rogue Special Mode None Game No. 440 Rogue 439 Adventurer 0 Explorer 1 Win Type - Total 9 Types 6/0/1/2/0/0/0/0/0 Lore% 73 Gallery% 84 Achievement% 62 Wizard Run 0 Options --------- ASCII 0 Keyboard 1 Movement Vi Keybinds 0 Fullscreen 1 Font 18/SmallcapsGlow Map View 76x50 Tactical HUD 1 Map Filters NONE Filters NONE Steam 1 RUN: e498324d-0b37-43e0-beaf-a3f23737c928